bitfinex/quotes_BTCUSD_20211001
["timestamp","ask_amount","ask_price","bid_price","bid_amount"]
[1633086162155,0.4895887,47078.0,47077.0,0.00023418]
[1633086162355,0.41011004,47078.0,47077.0,0.00023418]
[1633086162554,0.50890177,47078.0,47077.0,0.00023418]
[1633086162756,0.04027732,47078.0,47077.0,0.00023418]
[1633086162956,0.04027732,47078.0,47077.0,0.63748418]
[1633086163353,0.01527732,47078.0,47077.0,0.63748418]
[1633086163955,0.03927732,47078.0,47077.0,0.66971822]
[1633086164155,0.03927732,47078.0,47077.0,0.66848418]
[1633086164557,0.34057247,47078.0,47077.0,0.66848418]
[1633086164754,0.32529515,47078.0,47077.0,0.66848418]
[1633086164955,0.43256727,47078.0,47077.0,0.66848418]
[1633086165155,0.45856727,47078.0,47077.0,0.63748418]
[1633086165556,0.51834366,47078.0,47077.0,0.63748418]
[1633086165757,0.05,47078.0,47077.0,0.63748418]
[1633086165956,0.05,47078.0,47077.0,0.66348418]
[1633086165957,0.027,47078.0,47077.0,0.66348418]
[1633086166157,0.327,47078.0,47077.0,0.66348418]
[1633086166363,0.94234333,47078.0,47077.0,0.66348418]
[1633086166556,0.70671097,47078.0,47077.0,0.66348418]
[1633086166758,0.42011461,47078.0,47077.0,0.63774018]
[1633086166958,0.42137843,47078.0,47077.0,0.63774018]
[1633086167162,0.45430075,47078.0,47077.0,0.61174018]
[1633086167616,0.3,47078.0,47077.0,0.61174018]
[1633086167959,0.33,47078.0,47077.0,0.5781902]
[1633086168160,0.34527732,47078.0,47077.0,0.5781902]
[1633086168559,0.36394232,47078.0,47077.0,0.5781902]
[1633086168760,0.04527732,47078.0,47077.0,0.5781902]
[1633086169160,0.04527732,47078.0,47077.0,0.5501902]
[1633086169361,0.07631904,47078.0,47077.0,0.5501902]
[1633086169764,0.44144181,47078.0,47077.0,0.5501902]
[1633086169962,0.03927732,47078.0,47077.0,0.5781902]
[1633086170163,0.024,47078.0,47077.0,0.5781902]
[1633086170361,0.1212955,47078.0,47077.0,0.5781902]
[1633086170963,1.5,47077.0,47075.0,0.0004]
[1633086171165,0.61699839,47076.0,47066.0,0.0004]
[1633086171364,1.95655268,47072.0,47066.0,0.0004]
[1633086171564,0.69253163,47072.0,47066.0,0.0004]
[1633086171765,1.31659687,47072.0,47066.0,0.0004]
[1633086171966,1.34326463,47072.0,47071.0,0.0174]
[1633086172164,1.09326463,47072.0,47071.0,0.0174]
[1633086172369,0.37755828,47072.0,47071.0,0.31851319]
[1633086172568,0.032,47072.0,47071.0,0.31851319]
[1633086172964,0.032,47072.0,47071.0,0.65474]
[1633086173629,0.512505,47074.0,47071.0,0.63774]
[1633086174067,0.13361138,47072.0,47071.0,0.66674]
[1633086174268,0.43485332,47072.0,47071.0,0.66674]
[1633086174464,0.07424194,47072.0,47071.0,0.66674]
[1633086174869,0.02424194,47072.0,47071.0,0.66674]
[1633086175265,0.00124194,47072.0,47071.0,0.63774]
[1633086175465,0.10526249,47072.0,47071.0,0.63774]
[1633086176067,0.12826249,47072.0,47071.0,0.65174]
[1633086176667,0.1879085,47072.0,47071.0,0.65174]
[1633086176866,0.12826249,47072.0,47071.0,0.6488669]
[1633086177070,0.4237972,47072.0,47071.0,0.6488669]
[1633086177472,0.4007972,47072.0,47071.0,0.6348669]
[1633086177870,0.71846469,47072.0,47071.0,0.6348669]
[1633086178071,2.17953875,47070.0,47069.0,0.0004]
[1633086178277,1.64642718,47070.0,47061.0,0.02086]
[1633086178476,0.06092287,47067.0,47063.0,0.91461556]
[1633086178674,0.00123219,47064.0,47063.0,0.91461556]
[1633086178871,0.01588747,47064.0,47063.0,0.91461556]
[1633086179274,0.42368118,47064.0,47063.0,0.91461556]
[1633086179471,0.4243216,47064.0,47063.0,0.91461556]
[1633086179672,0.4493216,47064.0,47063.0,0.91461556]
[1633086180077,0.4783216,47064.0,47063.0,0.93661556]
[1633086180471,0.47934786,47064.0,47063.0,0.93661556]
[1633086181072,0.75962246,47064.0,47063.0,0.93661556]
[1633086181273,0.52389343,47064.0,47063.0,0.93661556]
[1633086181479,1.35062794,47064.0,47063.0,0.90182214]
[1633086181673,1.35062794,47064.0,47063.0,0.47671014]
[1633086181674,0.56482873,47064.0,47063.0,0.47671014]
[1633086181876,0.80063508,47064.0,47063.0,0.47671014]
[1633086182076,1.05583508,47064.0,47063.0,0.07257814]
[1633086182273,1.49407401,47064.0,47063.0,0.07257814]
[1633086182475,1.1468474,47064.0,47063.0,0.07257814]
[1633086182740,0.05,47063.0,47059.0,0.01697069]
[1633086182940,0.0012329,47060.0,47059.0,0.01697069]
[1633086184141,0.0012329,47060.0,47059.0,0.04397069]
[1633086184142,0.0302329,47060.0,47059.0,0.04397069]
[1633086184541,0.04106918,47060.0,47059.0,0.04397069]
[1633086184750,0.10136441,47060.0,47049.0,0.0004]
[1633086184942,0.10136441,47060.0,47047.0,0.0187]
[1633086184943,0.60425956,47050.0,47047.0,0.0187]
[1633086185142,0.3145164,47049.0,47047.0,0.00775485]
[1633086185344,0.32925956,47050.0,47046.0,0.04496485]
[1633086185345,0.21387017,47050.0,47046.0,0.04496485]
[1633086185540,0.05,47050.0,47047.0,0.0137]
[1633086185943,0.31108924,47053.0,47047.0,0.0137]
[1633086186141,0.024,47050.0,47049.0,0.19509466]
[1633086186342,0.024,47050.0,47042.0,0.00123202]
[1633086186543,0.024,47050.0,47040.0,0.06449856]
[1633086186743,0.324,47050.0,47042.0,0.00436652]
[1633086186942,0.318867,47048.0,47043.0,0.0187]
[1633086187143,0.00127088,47047.0,47043.0,0.0187]
[1633086187544,0.00102626,47047.0,47044.0,7.319e-05]
[1633086187743,0.00102626,47047.0,47045.0,0.0187]
[1633086188144,0.00123941,47046.0,47045.0,0.0187]
[1633086188346,0.23760826,47047.0,47045.0,0.0187]
[1633086188549,0.0012524,47046.0,47045.0,0.0187]
[1633086188747,0.02502681,47044.0,47039.0,0.0012]
[1633086188950,0.02502681,47044.0,47019.0,0.0012]
[1633086188951,0.12138844,47040.0,47019.0,0.0012]
[1633086189152,0.12138844,47040.0,47018.0,0.0016]
[1633086189153,0.05997918,47031.0,47015.0,0.00188704]
[1633086189349,0.00128553,47017.0,47015.0,0.50188704]
[1633086189548,0.00128553,47017.0,47014.0,0.19560637]
[1633086189746,0.95127962,47015.0,47014.0,0.00120637]
[1633086189947,0.40190308,47015.0,47014.0,0.00120637]
[1633086190147,0.01310427,47016.0,47014.0,0.47430637]
[1633086190348,0.01310427,47016.0,47015.0,1.720648]
[1633086190551,0.01310427,47016.0,47015.0,0.858758]
[1633086191147,0.01310427,47016.0,47015.0,0.63811]
[1633086191346,0.01413053,47016.0,47015.0,0.63811]
[1633086191746,0.08413053,47016.0,47015.0,0.63811]
[1633086191948,0.413597,47016.0,47015.0,0.63811]
[1633086192146,0.413597,47016.0,47015.0,0.67411]
[1633086192147,0.45049273,47016.0,47015.0,0.67411]
[1633086192346,0.12230884,47016.0,47015.0,0.67782821]
[1633086192548,0.07102626,47016.0,47015.0,0.67782821]
[1633086192748,0.07102626,47016.0,47015.0,0.86593502]
[1633086192948,0.07102626,47016.0,47015.0,0.67782821]
[1633086193448,0.07102626,47016.0,47015.0,0.64182821]
[1633086193848,0.07102626,47016.0,47015.0,0.85890568]
[1633086194047,0.07102626,47016.0,47015.0,0.67282821]
[1633086194048,0.06502626,47016.0,47015.0,0.67282821]
[1633086195048,0.06630173,47016.0,47015.0,0.67282821]
[1633086195250,0.06630173,47016.0,47015.0,0.63567102]
[1633086195451,0.065406,47016.0,47015.0,0.60095281]
[1633086195653,0.06413053,47016.0,47015.0,1.42427781]
[1633086195855,0.06413053,47016.0,47015.0,1.11619962]
[1633086196053,0.08413053,47016.0,47015.0,1.14119962]
[1633086196253,0.08413053,47016.0,47015.0,0.62595281]
[1633086197056,0.08538441,47016.0,47015.0,0.62595281]
[1633086197451,0.06538441,47016.0,47015.0,0.94192234]
[1633086197652,0.06538441,47016.0,47015.0,0.59676574]
[1633086197653,0.05228014,47016.0,47015.0,0.59676574]
[1633086198051,0.05228014,47016.0,47015.0,0.6169236]
[1633086198052,0.08028014,47016.0,47015.0,0.6169236]
[1633086198251,0.69937577,47016.0,47015.0,0.3169236]
[1633086198454,0.69937577,47016.0,47015.0,0.28008224]
[1633086198650,0.39937577,47016.0,47015.0,0.28008224]
[1633086198851,0.69510076,47016.0,47015.0,0.09525412]
[1633086199055,0.69510076,47016.0,47011.0,0.0016]
[1633086199056,0.0024,47009.0,46998.0,0.0012]
[1633086199255,0.91830076,47016.0,46993.0,0.24807223]
[1633086199256,0.14295009,46996.0,46993.0,0.24807223]
[1633086199454,0.05939625,47007.0,46995.0,0.00129106]
[1633086199658,0.0593678,47008.0,47007.0,0.05939625]
[1633086199857,0.17810339,47018.0,47007.0,0.05939625]
[1633086199858,0.4942047,47025.0,47023.0,0.21281824]
[1633086200054,0.70494485,47042.0,47019.0,1.45815972]
[1633086200055,0.05829492,47024.0,47019.0,1.19976147]
[1633086200255,0.08277477,47038.0,47024.0,0.63838]
[1633086200455,0.08277477,47038.0,47029.0,0.19272834]
[1633086200456,1.50122131,47033.0,47029.0,0.19272834]
[1633086200664,0.11035468,47032.0,47024.0,0.63838]
[1633086200853,0.00123289,47035.0,47024.0,0.63838]
[1633086201057,0.01493384,47032.0,47024.0,0.63838]
[1633086201654,0.212662,47030.0,47026.0,0.19099353]
[1633086201853,0.3062155,47030.0,47027.0,0.63838]
[1633086202054,0.3062155,47030.0,47027.0,0.63538]
[1633086202255,0.0935535,47030.0,47027.0,0.63538]
[1633086202453,0.0012648,47028.0,47027.0,0.63538]
[1633086202853,0.04493384,47032.0,47027.0,0.63538]
[1633086203253,0.03,47032.0,47027.0,0.63538]
[1633086203454,0.00251932,47033.0,47027.0,0.9235011]
[1633086203658,0.07429722,47034.0,47027.0,0.63538]
[1633086203856,0.00128376,47028.0,47027.0,0.63538]
[1633086204057,0.30128376,47028.0,47027.0,0.63538]
[1633086204457,0.032,47033.0,47027.0,0.85858]
[1633086204659,0.032,47033.0,47027.0,0.83764598]
[1633086204857,0.032,47033.0,47027.0,0.63538]
[1633086205058,0.00128346,47029.0,47027.0,0.63538]
[1633086205458,0.12082167,47028.0,47027.0,0.63538]
[1633086205662,0.12082167,47028.0,47004.0,0.1]
[1633086205663,0.42338663,47028.0,47007.0,0.03556473]
[1633086205858,0.00129172,47020.0,47014.0,0.22098141]
[1633086206058,0.31910105,47027.0,47014.0,0.22098141]
[1633086206261,0.00128144,47026.0,47010.0,0.2007]
[1633086206456,0.00126446,47020.0,47017.0,0.08604382]
[1633086206662,0.00126446,47020.0,47014.0,0.34953566]
[1633086207258,0.3,47022.0,47016.0,0.18635451]
[1633086207462,0.05,47021.0,47014.0,0.34953566]
[1633086207657,0.05,47021.0,47015.0,0.08061459]
[1633086207858,0.04,47021.0,47015.0,0.08061459]
[1633086208059,0.2527219,47021.0,47019.0,1.13813213]
[1633086208259,0.00126062,47020.0,47019.0,1.13813213]
[1633086208563,0.319133,47013.0,47007.0,0.03556473]
[1633086208766,0.425511,47017.0,47007.0,0.03556473]
[1633086208767,0.21401642,47011.0,47007.0,0.03556473]
[1633086208961,0.212755,47011.0,47007.0,0.03556473]
[1633086209359,0.512755,47011.0,47007.0,0.03556473]
[1633086209761,0.00123443,47008.0,47007.0,0.03556473]
[1633086209961,0.512755,47011.0,47007.0,0.03056473]
[1633086210163,0.541755,47011.0,47007.0,0.03056473]
[1633086210363,0.00127659,47008.0,47007.0,0.02556473]
[1633086210559,0.07150803,47010.0,47007.0,0.02556473]
[1633086210760,0.37454257,47010.0,47007.0,0.02556473]
[1633086210959,0.07150803,47010.0,47007.0,0.02556473]
[1633086211161,0.00126847,47009.0,47007.0,0.02556473]
[1633086211365,0.591755,47011.0,47007.0,0.02556473]
[1633086211563,0.562755,47011.0,47007.0,0.02556473]
[1633086211760,0.5025215,47008.0,47007.0,0.02556473]
[1633086211964,0.30372892,47008.0,47007.0,0.02556473]
[1633086212162,0.43821827,47008.0,47007.0,0.02556473]
[1633086212366,0.43821827,47008.0,46988.0,0.09619498]
[1633086212367,0.41687198,46980.0,46971.0,0.06205869]
[1633086212562,4.74458099,46950.0,46946.0,0.33138428]
[1633086212766,0.00560265,46976.0,46967.0,0.22337212]
[1633086212963,0.00560265,46976.0,46975.0,0.24160303]
[1633086213163,0.00560265,46976.0,46969.0,0.00124539]
[1633086213363,0.00560265,46976.0,46975.0,0.63902]
[1633086213763,0.00560265,46976.0,46975.0,0.86222]
[1633086214163,0.00560265,46976.0,46975.0,0.63902]
[1633086214164,0.02660265,46976.0,46975.0,0.63902]
[1633086214567,0.11794438,46976.0,46975.0,0.63902]
[1633086214764,1.47660265,46976.0,46975.0,0.54101473]
[1633086214966,0.02910204,46976.0,46975.0,0.44481975]
[1633086215164,0.02660265,46976.0,46975.0,0.93916321]
[1633086215365,0.02660265,46976.0,46975.0,0.41696223]
[1633086215764,0.12588527,46976.0,46975.0,0.41696223]
[1633086215969,0.02188227,46976.0,46975.0,0.40696223]
[1633086216166,0.01788227,46976.0,46975.0,0.40696223]
[1633086216366,0.01788227,46976.0,46975.0,0.40196223]
[1633086216765,0.01788227,46976.0,46975.0,0.39696223]
[1633086216968,0.46788227,46976.0,46975.0,0.39696223]
[1633086217165,0.01788227,46976.0,46975.0,0.39696223]
[1633086217367,0.01788227,46976.0,46975.0,1.11618717]
[1633086217568,0.05885715,46999.0,46980.0,0.66364751]
[1633086217768,0.00127603,47005.0,46981.0,0.63631023]
[1633086217967,1.25881053,47004.0,47003.0,0.21507073]
[1633086218169,1.25881053,47004.0,46990.0,0.39704166]
[1633086218170,0.028,46999.0,46990.0,0.39704166]
[1633086218368,0.028,46999.0,46991.0,0.39696223]
[1633086218641,0.212789,46996.0,46991.0,0.39696223]
[1633086218969,0.212789,46996.0,46991.0,0.39703548]
[1633086219172,0.212789,46996.0,46992.0,0.21256868]
[1633086219368,0.212789,46996.0,46991.0,0.39703548]
[1633086219369,0.09198739,46995.0,46991.0,0.39703548]
[1633086219967,0.212789,46996.0,46991.0,0.39703548]
[1633086220168,0.029,46995.0,46991.0,0.39703548]
[1633086220769,0.33599976,46995.0,46991.0,0.39703548]
[1633086220968,1.1708045,46992.0,46991.0,0.39703548]
[1633086221168,0.1208045,46992.0,46991.0,0.39703548]
[1633086221369,0.029,46995.0,46991.0,0.62023548]
[1633086221639,0.029,46995.0,46992.0,0.0187]
[1633086221771,0.029,46995.0,46993.0,0.4339936]
[1633086221968,0.029,46995.0,46993.0,0.83095583]
[1633086222168,0.029,46995.0,46994.0,0.07133028]
[1633086222369,0.029,46995.0,46994.0,0.39696223]
[1633086222570,0.029,46995.0,46994.0,0.62016223]
[1633086222769,0.029,46995.0,46994.0,1.27267095]
[1633086222968,0.04400342,46995.0,46994.0,1.27267095]
[1633086223168,0.04400342,46995.0,46994.0,0.85951023]
[1633086223368,0.04400342,46995.0,46994.0,0.73631023]
[1633086223569,0.01500342,46995.0,46994.0,0.50122159]
[1633086223769,0.01500342,46995.0,46994.0,0.72442159]
[1633086223968,0.01500342,46995.0,46994.0,0.41566223]
[1633086224168,0.03200342,46995.0,46994.0,0.41566223]
[1633086224970,0.03200342,46995.0,46994.0,0.49097408]
[1633086225171,0.017,46995.0,46994.0,0.39696223]
[1633086225577,0.512757,47003.0,46994.0,0.39696223]
[1633086226170,0.238757,47003.0,46999.0,0.23625563]
[1633086226369,0.238757,47003.0,46995.0,0.34250156]
[1633086226571,0.238757,47003.0,46994.0,0.49696223]
[1633086226572,0.11057188,46999.0,46994.0,0.39696223]
[1633086226973,0.00122822,47001.0,46994.0,0.38696223]
[1633086227372,0.09047848,46999.0,46994.0,0.38696223]
[1633086227573,0.026,47003.0,47002.0,0.24660732]
[1633086227771,0.026,47003.0,46996.0,0.2232]
[1633086227772,0.026,47003.0,46996.0,0.319112]
[1633086227971,0.12151729,47003.0,46997.0,0.38696223]
[1633086228171,0.12051729,47003.0,46997.0,0.38696223]
[1633086228372,0.00128984,47001.0,46997.0,0.38696223]
[1633086228575,0.09487011,47000.0,46998.0,0.26914058]
[1633086228772,0.09487011,47000.0,46999.0,0.38696223]
[1633086228974,1.40128516,47000.0,46999.0,0.38696223]
[1633086229373,0.13550926,47003.0,46999.0,0.38696223]
[1633086229574,0.13550926,47003.0,46999.0,0.38703094]
[1633086229771,0.11050926,47003.0,46999.0,0.38703094]
[1633086229972,0.19702064,47003.0,46999.0,0.28703094]
[1633086230172,0.22702064,47003.0,46999.0,0.28703094]
[1633086230375,0.00124673,47002.0,46999.0,0.28703094]
[1633086230634,0.00129761,47000.0,46999.0,0.28703094]
[1633086230777,0.00319761,47000.0,46999.0,0.28703094]
[1633086231777,0.00319761,47000.0,46980.0,0.66364751]
[1633086231778,0.30467478,46993.0,46980.0,0.66364751]
[1633086231979,0.00124663,46984.0,46980.0,0.66364751]
[1633086232178,0.33860411,46992.0,46980.0,0.66364751]
[1633086232376,0.00123587,46992.0,46980.0,0.66364751]
[1633086232577,0.51410863,46993.0,46984.0,0.07829527]
[1633086232779,0.30467478,46993.0,46988.0,0.2232]
[1633086232977,0.30589098,46993.0,46980.0,0.66364751]
[1633086233176,0.09444262,47000.0,46995.0,0.3]
[1633086233377,0.0339,47000.0,46997.0,0.00128962]
[1633086233578,0.0019,47000.0,46998.0,0.47263184]
[1633086233777,0.0019,47000.0,46999.0,0.09581446]
[1633086233975,0.0019,47000.0,46999.0,0.97627446]
[1633086234176,0.0239,47000.0,46999.0,0.75307446]
[1633086234976,0.0239,47000.0,46999.0,0.65726]
[1633086235378,0.0239,47000.0,46999.0,1.01917106]
[1633086235776,0.3519,47000.0,46999.0,0.90807237]
[1633086235978,0.0019,47000.0,46999.0,0.89458039]
[1633086236180,0.0259,47000.0,46999.0,0.92458039]
[1633086236378,0.0259,47000.0,46999.0,0.56266933]
[1633086236642,0.0259,47000.0,46999.0,0.49881694]
[1633086236781,0.4259,47000.0,46999.0,0.49881694]
[1633086236982,0.0259,47000.0,46999.0,0.49881694]
[1633086237184,0.0209,47000.0,46999.0,0.49881694]
[1633086237385,0.32339021,47000.0,46999.0,0.49881694]
[1633086237582,0.30120541,47000.0,46999.0,0.48751694]
[1633086237781,0.05120541,47000.0,46999.0,0.48751694]
[1633086237982,0.212817,47001.0,46999.0,0.48751694]
[1633086238180,0.33548232,47001.0,46999.0,0.46881694]
[1633086238380,0.027,47000.0,46999.0,0.46881694]
[1633086238581,0.027,47000.0,46999.0,1.01995085]
[1633086238881,0.027,47000.0,46999.0,1.05668971]
[1633086239083,0.027,47000.0,46999.0,1.05541234]
[1633086239483,0.04199388,47000.0,46999.0,1.13463676]
[1633086239685,0.01499388,47000.0,46999.0,1.13463676]
[1633086239885,0.01499388,47000.0,46999.0,1.04541234]
[1633086240084,0.01499388,47000.0,46999.0,0.7078014]
[1633086240284,0.01999388,47000.0,46999.0,0.7078014]
[1633086240883,0.01999388,47000.0,46999.0,0.64394901]
[1633086241289,0.01999388,47000.0,46999.0,0.90837264]
[1633086241483,0.003,47001.0,46999.0,0.90837264]
[1633086241683,0.003,47001.0,46999.0,0.41366455]
[1633086242084,0.003,47001.0,46999.0,0.41488251]
[1633086242285,0.003,47001.0,46999.0,0.50923091]
[1633086242286,0.024,47001.0,46999.0,0.50923091]
[1633086242685,0.024,47001.0,47000.0,0.55877689]
[1633086242886,0.024,47001.0,47000.0,0.95374144]
[1633086243685,0.003,47001.0,47000.0,0.39496455]
[1633086244284,0.023,47001.0,47000.0,0.39496455]
[1633086244686,0.023,47001.0,47000.0,0.63199077]
[1633086245087,0.03799197,47001.0,47000.0,0.63199077]
[1633086245284,0.03799197,47001.0,47000.0,0.93865711]
[1633086245684,0.01799197,47001.0,47000.0,0.93865711]
[1633086245891,0.01799197,47001.0,47000.0,0.39496455]
[1633086246285,0.01799197,47001.0,47000.0,0.71404955]
[1633086246286,0.03899197,47001.0,47000.0,0.71404955]
[1633086246485,0.03899197,47001.0,47000.0,0.39496455]
[1633086246886,0.03899197,47001.0,47000.0,0.93602253]
[1633086247085,0.03899197,47001.0,47000.0,1.21007045]
[1633086247086,0.024,47001.0,47000.0,1.21007045]
[1633086247286,0.024,47001.0,47000.0,0.93602253]
[1633086247486,0.024,47001.0,47000.0,1.25513153]
[1633086247688,0.024,47001.0,47000.0,1.75781988]
[1633086247889,0.003,47001.0,47000.0,1.77651988]
[1633086248089,0.003,47001.0,47000.0,0.59564754]
[1633086248290,0.315,47001.0,47000.0,0.59564754]
[1633086248687,0.43562889,47001.0,47000.0,0.59564754]
[1633086248888,0.015,47001.0,47000.0,0.57694754]
[1633086249088,0.015,47001.0,47000.0,0.88831245]
[1633086249687,0.015,47001.0,47000.0,0.864667]
[1633086249889,0.015,47001.0,47000.0,1.11657515]
[1633086250087,0.015,47001.0,47000.0,0.81756344]
[1633086250290,0.032,47001.0,47000.0,0.88802751]
[1633086250494,0.04699197,47001.0,47000.0,1.10188015]
[1633086250690,0.05973096,47011.0,47000.0,1.10188015]
[1633086250691,0.17912848,47019.0,47016.0,0.85535189]
[1633086250890,0.17952636,47027.0,47017.0,0.91328417]
[1633086251090,0.17952308,47033.0,47024.0,0.00244837]
[1633086251291,0.17946368,47035.0,47024.0,0.80804118]
[1633086251489,0.17941013,47035.0,47024.0,0.80804118]
[1633086251692,0.2898367,47034.0,47024.0,1.1426807]
[1633086251891,0.17954384,47037.0,47024.0,1.21783896]
[1633086252091,0.09898059,47039.0,47024.0,1.75997696]
[1633086252092,0.1797347,47039.0,47024.0,1.75997696]
[1633086252289,0.1213,47025.0,47024.0,2.98097696]
[1633086252489,0.1213,47025.0,47024.0,3.45616424]
[1633086252690,0.1213,47025.0,47024.0,3.48616424]
[1633086252894,0.0002,47043.0,47029.0,1.79936508]
[1633086253094,0.0002,47043.0,47042.0,0.00256112]
[1633086253296,0.18078642,47053.0,47043.0,0.450648]
[1633086253494,0.00524259,47059.0,47057.0,0.6877696]
[1633086253692,0.00524259,47059.0,47058.0,0.97047432]
[1633086253891,0.00524259,47059.0,47058.0,1.34788879]
[1633086254092,0.00524259,47059.0,47058.0,1.56980605]
[1633086254295,0.00524259,47059.0,47058.0,1.98844205]
[1633086254296,0.032,47059.0,47058.0,1.98844205]
[1633086254652,0.032,47059.0,47058.0,1.61822903]
[1633086255053,0.032,47059.0,47058.0,1.69970861]
[1633086255253,0.032,47059.0,47058.0,1.5049951]
[1633086255649,0.032,47059.0,47058.0,1.18227014]
[1633086255849,0.21247,47069.0,47058.0,1.18227014]
[1633086256050,0.21247,47069.0,47068.0,0.21201013]
[1633086256249,0.21247,47069.0,47068.0,0.01995447]
[1633086256449,0.99347,47069.0,47068.0,0.01995447]
[1633086256651,0.464086,47069.0,47068.0,0.01995447]
[1633086256852,0.987286,47069.0,47068.0,0.0187]
[1633086257051,0.987286,47069.0,47058.0,0.35731941]
[1633086257052,1.28291248,47069.0,47058.0,0.35731941]
[1633086257251,1.28291248,47069.0,47058.0,0.024]
[1633086257252,1.50127037,47059.0,47058.0,0.024]
[1633086257450,1.5,47058.0,47057.0,0.64379047]
[1633086257650,2.32644962,47058.0,47057.0,0.64379047]
[1633086257850,0.77644962,47058.0,47057.0,0.64379047]
[1633086258154,0.32219594,47058.0,47057.0,0.65162992]
[1633086258350,0.44312876,47058.0,47057.0,0.65162992]
[1633086258552,0.35195675,47058.0,47057.0,0.65162992]
[1633086258753,0.25285291,47058.0,47057.0,0.65162992]
[1633086258954,0.251616,47058.0,47057.0,0.65162992]
[1633086259154,0.031,47058.0,47057.0,0.8760336]
[1633086259351,0.031,47058.0,47057.0,1.0967896]
[1633086259553,0.031,47058.0,47057.0,1.07275738]
[1633086259754,0.212558,47061.0,47057.0,1.0715537]
[1633086259954,0.07314569,47059.0,47057.0,0.72996722]
[1633086260155,1.5,47057.0,47042.0,0.17890957]
[1633086260361,1.5,47057.0,47034.0,0.46249899]
[1633086260362,0.00123707,47043.0,47034.0,0.00126667]
[1633086260555,0.220616,47042.0,47029.0,0.40002]
[1633086260758,0.33500726,47041.0,47029.0,0.1998]
[1633086260958,0.11037708,47030.0,47029.0,0.1998]
[1633086261156,0.41890945,47030.0,47029.0,0.1998]
[1633086261356,0.220616,47030.0,47029.0,0.1998]
[1633086261554,0.23197644,47030.0,47029.0,0.1998]
[1633086262257,0.23197644,47030.0,47029.0,0.74708836]
[1633086262258,0.01136044,47030.0,47029.0,0.74708836]
[1633086262457,0.01136044,47030.0,47029.0,1.03615156]
[1633086262458,0.03636044,47030.0,47029.0,1.03615156]
[1633086262656,0.03636044,47030.0,47029.0,2.15715156]
[1633086263060,0.03636044,47030.0,47029.0,0.9861088]
[1633086263254,0.03636044,47030.0,47029.0,0.7629088]
[1633086263457,0.025,47030.0,47029.0,1.10438663]
[1633086263657,0.35415268,47041.0,47029.0,1.10564307]
[1633086263858,0.11169713,47042.0,47037.0,0.23613208]
[1633086264059,0.55549748,47046.0,47038.0,0.00125184]
[1633086264259,0.220616,47045.0,47038.0,0.00125184]
[1633086264455,0.017,47042.0,47037.0,0.23613208]
[1633086265059,0.33748659,47053.0,47037.0,0.23613208]
[1633086265060,0.0004,47074.0,47068.0,0.61711962]
[1633086265259,0.0002,47079.0,47068.0,0.61711962]
[1633086265260,0.3004,47085.0,47080.0,0.212181]
[1633086265462,0.2503,47096.0,47093.0,0.43498368]
[1633086265667,0.0004,47099.0,47098.0,0.36641962]
[1633086265862,0.19236759,47109.0,47099.0,1.32101749]
[1633086266064,0.01327425,47114.0,47108.0,0.0012866]
[1633086266260,0.01327425,47114.0,47113.0,0.20449424]
[1633086266458,0.01327425,47114.0,47113.0,0.49483541]
[1633086266670,0.01327425,47114.0,47113.0,0.22149424]
[1633086267260,0.01327425,47114.0,47113.0,0.80170897]
[1633086267460,0.01327425,47114.0,47113.0,1.02369451]
[1633086267658,0.01327425,47114.0,47113.0,0.74670756]
[1633086267857,0.02316316,47115.0,47113.0,0.74670756]
[1633086268060,0.02316316,47115.0,47114.0,0.220756]
[1633086268258,0.24232632,47120.0,47115.0,0.5]
[1633086268459,0.0004,47126.0,47122.0,0.00011465]
[1633086268664,0.0006,47129.0,47123.0,0.17608148]
[1633086268862,0.0006,47131.0,47127.0,1.720543]
[1633086269061,0.0006,47139.0,47132.0,0.24010107]
[1633086269260,0.08784807,47139.0,47133.0,0.874583]
[1633086269458,0.0006,47139.0,47134.0,0.2625599]
[1633086269662,0.0006,47139.0,47137.0,0.00247413]
[1633086269864,0.0006,47139.0,47137.0,0.23981713]
[1633086270265,1.5,47134.0,47133.0,0.017]
[1633086270464,0.22176867,47134.0,47127.0,0.017]
[1633086270664,0.12103769,47129.0,47127.0,0.017]
[1633086270864,0.12101438,47128.0,47127.0,0.017]
[1633086271066,0.0002,47134.0,47127.0,0.017]
[1633086271267,0.12110227,47129.0,47128.0,0.22048]
[1633086271465,0.0002,47134.0,47131.0,0.20046]
[1633086271666,0.00015592,47133.0,47132.0,0.50731534]
[1633086272070,0.00015592,47133.0,47132.0,0.87399]
[1633086272467,0.02515592,47133.0,47132.0,0.90599]
[1633086272769,0.02515592,47133.0,47132.0,0.89599]
[1633086272967,0.02515592,47133.0,47132.0,0.66851]
[1633086272968,0.02644237,47133.0,47132.0,0.66851]
[1633086273167,0.02015592,47133.0,47132.0,0.889002]
[1633086273567,0.02015592,47133.0,47132.0,0.66851]
[1633086273770,0.02135689,47133.0,47132.0,0.45197574]
[1633086273966,0.00120097,47133.0,47132.0,0.45197574]
[1633086274168,0.45197574,47132.0,47122.0,0.00011465]
[1633086274368,0.00124801,47123.0,47122.0,0.00011465]
[1633086274568,0.12103391,47125.0,47122.0,0.00011465]
[1633086274771,0.45197574,47132.0,47126.0,0.12094545]
[1633086274968,0.45197574,47132.0,47131.0,0.00122441]
[1633086275172,0.45197574,47132.0,47131.0,0.21521561]
[1633086275369,0.45197574,47132.0,47131.0,0.5114527]
[1633086275569,0.45197574,47132.0,47131.0,0.2139912]
[1633086276169,0.45197574,47132.0,47129.0,0.20004]
[1633086276571,0.48197574,47132.0,47131.0,0.029]
[1633086277773,0.45197574,47132.0,47130.0,0.23232308]
[1633086277972,0.46314232,47132.0,47130.0,0.23232308]
[1633086278177,0.46314232,47132.0,47129.0,0.20004]
[1633086278572,0.49314232,47132.0,47130.0,0.028]
[1633086278773,0.49314232,47132.0,47130.0,0.01702202]
[1633086278774,0.220492,47131.0,47130.0,0.01702202]
[1633086278977,0.67604421,47132.0,47130.0,0.01702202]
[1633086279178,1.420492,47131.0,47130.0,0.01702202]
[1633086279377,1.5,47130.0,47126.0,0.12094545]
[1633086279580,0.00129611,47127.0,47126.0,0.12094545]
[1633086279776,0.22178811,47127.0,47126.0,0.12094545]
[1633086279976,0.22178811,47127.0,47126.0,0.12497407]
[1633086280177,0.31321464,47127.0,47126.0,0.12497407]
[1633086280377,0.400652,47127.0,47126.0,0.12497407]
[1633086280577,0.29321464,47127.0,47126.0,0.14297407]
[1633086280778,0.11769939,47127.0,47126.0,0.14174846]
[1633086280977,0.30050681,47127.0,47126.0,0.14174846]
[1633086281183,0.1828505,47127.0,47126.0,0.14174846]